Workbook

Sheet Data
A1: Exam TPG4245, Autumn 2022, Prof. Milan Stanko. | D1: Input
D2: Calculated
D3: Solver adjusted
A4: Reservoir pressure, pR | B4: [bara] | C4: 400
A5: Productivity Index, J | B5: [Sm3/d/bar] | C5: 10
A6: Bubble point pressure (pb) @TR | B6: [bara] | C6: 253 | D6: <--Task 1 | J6: Task 1 - Explanation --> | K6: The bubble point pressure of the oil is found by examining the black oil tables given in the tab "PVT" and determining at which pressure Rs becomes constant
A7: Reservoir GOR | B7: [Sm3/Sm3] | C7: 100 | J7: --> | K7: Since the reservoir is undersaturated oil, the producing GOR is equal to the saturation Rs (100)
J8: -->
J9: -->
A10: Task 2 | J10: Task 2 - Explanation --> | K10: Assume the flowing bottom-hole pressure
A11: TPR column | B11: pwf (IPR) | C11: qo | D11: pwf (TPR) | E11: pwf (TPR)-pwf (IPR) | J11: --> | K11: Use the composite IPR equation to calculate oil rate. (VBA function "CompositeIPR_qo")
A12: [-] | B12: [bara] | C12: [Sm3/d] | D12: [bara] | E12: [bar] | J12: --> | K12: Use the interpolation VBA function ("tabinterpol"), the oil rate calculated above and the TPR table for GOR=100, to determine flowing bottom-hole pressure.
A13: 2 | B13: 271.2929887 | C13: =CompositeIPR_qo($C$4,B13,$C$6,$C$5) -> 1287.070113 | D13: =tabinterpol(Data!C13,A13,TPR!$A$8:$B$27) -> 271.2929883 | E13: =D13-B13 -> -3.865185363e-07 | J13: --> | K13: These two flowing bottom-hole pressures should be the same for natural flow.
J14: --> | K14: Substract the available flowing bottom-hole pressure (calculated with IPR) from the required flowing bottom-hole pressure (calculated from TPR). This gives a pressure difference
A15: Task 3 | J15: --> | K15: Use solver or goal seek to change assumed flowing bottom-hole pressure until the pressure difference is equal to zero
A16: Skin factor, initial | B16: [-] | C16: 3 | J16: Task 3 - Explanation --> | K16: After inspecting the analytical expression of J, multiply the J provided by (8-0.75-3) and divide by (8-0.75+0) to calculate the new J.
A17: Skin factor, new | B17: [-] | C17: 0 | J17: --> | K17: Repeat the procedure described in task 2 to calculate the new equilibrium rate.
A18: ln(re/rw) | B18: [-] | C18: 8 | J18: --> | K18: The new equilibrium rate is significantly higher than the rate found in task 2.
A19: New productivity index, J | B19: [Sm3/d/bar] | C19: =C5*(C18-0.75+C16)/(C18-0.75+C17) -> 14.13793103 | J19: -->
J20: -->
A21: TPR column | B21: pwf (IPR) | C21: qo | D21: pwf (TPR) | E21: pwf (TPR)-pwf (IPR) | J21: -->
A22: [-] | B22: [bara] | C22: [Sm3/d] | D22: [bara] | E22: [bar] | J22: -->
A23: 2 | B23: 274.9780596 | C23: =CompositeIPR_qo($C$4,B23,$C$6,$C$19) -> 1767.551571 | D23: =tabinterpol(Data!C23,A23,TPR!$A$8:$B$27) -> 274.9780596 | E23: =D23-B23 -> -3.352170097e-08 | J23: -->
J24: -->
A25: Task 4 | J25: Task 4 - Explanation --> | K25: Set flowing bottom-hole pressure to pb at TR (253 bara)
A26: ESP hydraulic efficiency | B26: [-] | C26: 0.6 | J26: --> | K26: Use the composite IPR equation to calculate oil rate. (VBA function "CompositeIPR_qo")
J27: --> | K27: Use the interpolation VBA function ("tabinterpol"), the oil rate calculated above and the TPR table for GOR=100, to determine flowing bottom-hole pressure.
A28: TPR column | B28: pwf (IPR) | C28: qo | D28: pwf (TPR) | E28: pwf (TPR)-pwf (IPR) | F28: Bo@psuc | G28: qo@psuc | H28: ESP power | J28: --> | K28: Substract the available flowing bottom-hole pressure (calculated with IPR) from the required flowing bottom-hole pressure (calculated from TPR). This gives the required pump delta pressure.
A29: [-] | B29: [bara] | C29: [Sm3/d] | D29: [bara] | E29: [bar] | F29: [-] | G29: [m3/d] | H29: [W] | J29: --> | K29: Calculate the oil volume factor Bo at the inlet of the pump, by using the available flowing bottom-hole pressure, the interpolation VBA function ("tabinterpol") and the PVT table provided in table "PVT"
A30: 2 | B30: =C6 -> 253 | C30: =CompositeIPR_qo($C$4,B30,$C$6,$C$5) -> 1470 | D30: =tabinterpol(Data!C30,A30,TPR!$A$8:$B$27) -> 272.4755134 | E30: =D30-B30 -> 19.47551343 | F30: =tabinterpol(B30,4,PVT!A5:I35) -> 1.29131 | G30: =F30*C30 -> 1898.2257 | H30: =ESP_power(E30,G30,C26) -> 71313.50331 | J30: --> | K30: Calculate the volumetric rate of oil at the inlet of the pump with the oil volume factor calculated in the previous step and the standard conditions oil rate --> qo = qo_sc*Bo
J31: --> | K31: Calculate the ESP power by using the VBA function "ESP_power", and input the volumetric oil rate at inlet, pump delta pressure anc hydraulic efficiency
A32: Task 5 | J32: Task 5 - Explanation --> | K32: Repeat task 2 but using all TPR curves provided in the tab "TPR"
A33: TPR column | B33: Tubing Rp (with gas lift) | C33: pwf (IPR) | D33: qo | E33: pwf (TPR) | F33: pwf (TPR)-pwf (IPR) | G33: qg - gas lift | J33: --> | K33: For all results, estimate the required gas lift rate by qo_sc*(GOR-100)
A34: [-] | B34: [-] | C34: [bara] | D34: [Sm3/d] | E34: [bara] | F34: [bar] | G34: [Sm3/d] | J34: --> | K34: The largest oil production is found for a tubing Rp of 400 and a gas lift rate of 5.3E05 Sm3/d
A35: 2 | B35: 100 | C35: 271.2929407 | D35: =CompositeIPR_qo($C$4,C35,$C$6,$C$5) -> 1287.070593 | E35: =tabinterpol(Data!D35,A35,TPR!$A$8:$F$27) -> 271.292991 | F35: =E35-C35 -> 5.032807974e-05 | G35: =D35*(B35-$C$7) -> 0 | J35: --> | K35: This alternative seems much better than using ESP
A36: 3 | B36: 200 | C36: 239.4907383 | D36: =CompositeIPR_qo($C$4,C36,$C$6,$C$5) -> 1601.485895 | E36: =tabinterpol(Data!D36,A36,TPR!$A$8:$F$27) -> 239.4913716 | F36: =E36-C36 -> 0.0006333761081 | G36: =D36*(B36-$C$7) -> 160148.5895 | J36: -->
A37: 4 | B37: 400 | C37: 220.8705371 | D37: =CompositeIPR_qo($C$4,C37,$C$6,$C$5) -> 1770.893396 | E37: =tabinterpol(Data!D37,A37,TPR!$A$8:$F$27) -> 220.8709618 | F37: 0.0004247364526 | G37: 531268.0188 | J37: -->
A38: 5 | B38: 600 | C38: 222.7886209 | D38: =CompositeIPR_qo($C$4,C38,$C$6,$C$5) -> 1754.075699 | E38: =tabinterpol(Data!D38,A38,TPR!$A$8:$F$27) -> 222.7885485 | F38: -7.243268016e-05 | G38: 877037.8497 | J38: -->
A39: 6 | B39: 800 | C39: 229.0276291 | D39: =CompositeIPR_qo($C$4,C39,$C$6,$C$5) -> 1698.366504 | E39: =tabinterpol(Data!D39,A39,TPR!$A$8:$F$27) -> 229.0270795 | F39: -0.000549637443 | G39: 1188856.553 | J39: -->
F40: =SUMSQ(F35:F39) -> 8.91447076e-07 | J40: -->
A41: Task 6 | J41: Task 6 - Explanation --> | K41: Set pressure at TVD=0 m to 100 bara
A42: Tubing inner diameter, d | B42: [m] | C42: =4.5*25.4/1000 -> 0.1143 | J42: --> | K42: Calculate black oil properties at that pressure by using the pressure, the interpolation VBA function ("tabinterpol") and the PVT table provided in table "PVT". Use the proper column number!!!
A43: Tubing cross section area, A | B43: [m2] | C43: =((C42)^2)*PI()*0.25 -> 0.01026082645 | J43: --> | K43: Calculate oil and gas local volumetric rates by using the black oil properties, the oil and gas standard conditions rates and the VBA functions "qg_local” and “qo_local
A44: Tubing wall roughness | B44: [m] | C44: 1e-05 | J44: --> | K44: Calculate superficial oil and gas velocities from the oil and gas volumetric rates. Remember changing units!!!
A45: Tubing inclination angle from horizontal | B45: [deg] | C45: 90 | J45: --> | K45: Calculate the non-slip gas volume fraction (lambdag) by qg/(qg+qo)
A46: Well oil rate at standard conditions, qo | B46: [Sm3/d] | C46: =C13 -> 1287.070113 | J46: --> | K46: As there is no slip (homogeneous flow) then void fraction ɛ is equal to lambdag
A47: Well gas rate at standard conditions, qg | B47: [Sm3/d] | C47: =C46*$C$7 -> 128707.0113 | J47: --> | K47: Use the drift flux model, the VBA function "dpdx_mpf" with the proper input (void fraction, superficial velocities, densities, viscosities, pipe diameter, roughness and inclination) to compute pressure gradient.
J48: --> | K48: Calculate pressure at the next point in the tubing by substracting dpdx*delta L
J49: --> | K49: Repeat for all depth by dragging the top row down. Ensure cells that must be frozen are frozen.
D51: BO table column-> | E51: 2 | F51: 3 | G51: 4 | H51: 5 | I51: 6 | J51: 7 | K51: 8 | L51: 9
B52: TVD [m] | C52: T [C] | D52: p[bara] | E52: Rs [Sm3/Sm3] | F52: rs [Sm3/Sm3] | G52: Bo [m3/Sm3] | H52: Bg [m3/Sm3] | I52: deng [kg/m3] | J52: viscg [cp] | K52: deno [kg/m3] | L52: viso [cp] | M52: qo [m3/d] | N52: qg[m3/d] | O52: uso [m/s] | P52: usg [m/s] | Q52: lambdag[-] | R52: ɛ - void fraction [-] | S52: dp/dx [bara/m]
B53: 0 | C53: 80 | D53: 100 | E53: =tabinterpol($D53,E$51,PVT!$A$5:$I$35) -> 33.63045643 | F53: =tabinterpol($D53,F$51,PVT!$A$5:$I$35) -> 0 | G53: =tabinterpol($D53,G$51,PVT!$A$5:$I$35) -> 1.107978222 | H53: =tabinterpol($D53,H$51,PVT!$A$5:$I$35) -> 0.0105253472 | I53: =tabinterpol($D53,I$51,PVT!$A$5:$I$35) -> 87.95118322 | J53: =tabinterpol($D53,J$51,PVT!$A$5:$I$35) -> 0.01530943749 | K53: =tabinterpol($D53,K$51,PVT!$A$5:$I$35) -> 786.1792007 | L53: =tabinterpol($D53,L$51,PVT!$A$5:$I$35) -> 0.9910643357 | M53: =qo_local(E53,F53,G53,$C$47,$C$46) -> 1426.045655 | N53: =qg_local(E53,F53,H53,$C$47,$C$46) -> 899.0989021 | O53: =M53/(3600*24*$C$43) -> 1.608560297 | P53: =N53/(3600*24*$C$43) -> 1.014171455 | Q53: =P53/(P53+O53) -> 0.386685163 | R53: =Q53 -> 0.386685163 | S53: =dpdx_mpf($C$44,L53,J53,K53,I53,O53,P53,$C$42,$C$45,R53) -> -0.0530388381
B54: 500 | C54: 80 | D54: =D53+(B53-B54)*S53 -> 126.5194191 | E54: =tabinterpol($D54,E$51,PVT!$A$5:$I$35) -> 43.40464005 | F54: =tabinterpol($D54,F$51,PVT!$A$5:$I$35) -> 0 | G54: =tabinterpol($D54,G$51,PVT!$A$5:$I$35) -> 1.132733959 | H54: =tabinterpol($D54,H$51,PVT!$A$5:$I$35) -> 0.008086503889 | I54: =tabinterpol($D54,I$51,PVT!$A$5:$I$35) -> 114.2408727 | J54: =tabinterpol($D54,J$51,PVT!$A$5:$I$35) -> 0.01665427909 | K54: =tabinterpol($D54,K$51,PVT!$A$5:$I$35) -> 776.9569451 | L54: =tabinterpol($D54,L$51,PVT!$A$5:$I$35) -> 0.9026854354 | M54: =qo_local(E54,F54,G54,$C$47,$C$46) -> 1457.908025 | N54: =qg_local(E54,F54,H54,$C$47,$C$46) -> 589.0387039 | O54: 1.644500621 | P54: =N54/(3600*24*$C$43) -> 0.6644277265 | Q54: =P54/(P54+O54) -> 0.2877645498 | R54: =Q54 -> 0.2877645498 | S54: =dpdx_mpf($C$44,L54,J54,K54,I54,O54,P54,$C$42,$C$45,R54) -> -0.05964310056
B55: 1000 | C55: 80 | D55: =D54+(B54-B55)*S54 -> 156.3409693 | E55: =tabinterpol($D55,E$51,PVT!$A$5:$I$35) -> 55.20964615 | F55: =tabinterpol($D55,F$51,PVT!$A$5:$I$35) -> 0 | G55: =tabinterpol($D55,G$51,PVT!$A$5:$I$35) -> 1.163995788 | H55: =tabinterpol($D55,H$51,PVT!$A$5:$I$35) -> 0.006467386142 | I55: =tabinterpol($D55,I$51,PVT!$A$5:$I$35) -> 142.8680254 | J55: =tabinterpol($D55,J$51,PVT!$A$5:$I$35) -> 0.01840333215 | K55: =tabinterpol($D55,K$51,PVT!$A$5:$I$35) -> 765.4573683 | L55: =tabinterpol($D55,L$51,PVT!$A$5:$I$35) -> 0.8116576377 | M55: =qo_local(E55,F55,G55,$C$47,$C$46) -> 1498.14419 | N55: =qg_local(E55,F55,H55,$C$47,$C$46) -> 372.8339833 | O55: 1.689886474 | P55: =N55/(3600*24*$C$43) -> 0.4205517129 | Q55: =P55/(P55+O55) -> 0.1992722249 | R55: =Q55 -> 0.1992722249 | S55: =dpdx_mpf($C$44,L55,J55,K55,I55,O55,P55,$C$42,$C$45,R55) -> -0.06487333389
B56: 1500 | C56: 80 | D56: 188.7776363 | E56: =tabinterpol($D56,E$51,PVT!$A$5:$I$35) -> 69.07683897 | F56: =tabinterpol($D56,F$51,PVT!$A$5:$I$35) -> 0 | G56: =tabinterpol($D56,G$51,PVT!$A$5:$I$35) -> 1.202175198 | H56: =tabinterpol($D56,H$51,PVT!$A$5:$I$35) -> 0.005389565228 | I56: =tabinterpol($D56,I$51,PVT!$A$5:$I$35) -> 171.3490291 | J56: =tabinterpol($D56,J$51,PVT!$A$5:$I$35) -> 0.0204686513 | K56: =tabinterpol($D56,K$51,PVT!$A$5:$I$35) -> 751.7937333 | L56: =tabinterpol($D56,L$51,PVT!$A$5:$I$35) -> 0.7219445962 | M56: =qo_local(E56,F56,G56,$C$47,$C$46) -> 1547.283768 | N56: =qg_local(E56,F56,H56,$C$47,$C$46) -> 214.5061855 | O56: 1.745315256 | P56: =N56/(3600*24*$C$43) -> 0.2419600889 | Q56: =P56/(P56+O56) -> 0.1217546877 | R56: 0.1217546877 | S56: =dpdx_mpf($C$44,L56,J56,K56,I56,O56,P56,$C$42,$C$45,R56) -> -0.06865092446
B57: 2000 | C57: 80 | D57: 223.1030985 | E57: =tabinterpol($D57,E$51,PVT!$A$5:$I$35) -> 85.00016833 | F57: =tabinterpol($D57,F$51,PVT!$A$5:$I$35) -> 0 | G57: =tabinterpol($D57,G$51,PVT!$A$5:$I$35) -> 1.247502185 | H57: =tabinterpol($D57,H$51,PVT!$A$5:$I$35) -> 0.004667421765 | I57: =tabinterpol($D57,I$51,PVT!$A$5:$I$35) -> 197.7096723 | J57: =tabinterpol($D57,J$51,PVT!$A$5:$I$35) -> 0.02271054073 | K57: =tabinterpol($D57,K$51,PVT!$A$5:$I$35) -> 736.2466513 | L57: =tabinterpol($D57,L$51,PVT!$A$5:$I$35) -> 0.6371239343 | M57: =qo_local(E57,F57,G57,$C$47,$C$46) -> 1605.622779 | N57: =qg_local(E57,F57,H57,$C$47,$C$46) -> 90.1084747 | O57: 1.811120874 | P57: =N57/(3600*24*$C$43) -> 0.1016411461 | Q57: =P57/(P57+O57) -> 0.05313841715 | R57: 0.05313841715 | S57: =dpdx_mpf($C$44,L57,J57,K57,I57,O57,P57,$C$42,$C$45,R57) -> -0.07117037864
B58: 2500 | C58: 80 | D58: 258.6882878 | E58: =tabinterpol($D58,E$51,PVT!$A$5:$I$35) -> 100 | F58: =tabinterpol($D58,F$51,PVT!$A$5:$I$35) -> 0 | G58: =tabinterpol($D58,G$51,PVT!$A$5:$I$35) -> 1.290192161 | H58: =tabinterpol($D58,H$51,PVT!$A$5:$I$35) -> 0 | I58: =tabinterpol($D58,I$51,PVT!$A$5:$I$35) -> 0 | J58: =tabinterpol($D58,J$51,PVT!$A$5:$I$35) -> 0 | K58: =tabinterpol($D58,K$51,PVT!$A$5:$I$35) -> 722.6023854 | L58: =tabinterpol($D58,L$51,PVT!$A$5:$I$35) -> 0.5745597362 | M58: =qo_local(E58,F58,G58,$C$47,$C$46) -> 1660.567771 | N58: =qg_local(E58,F58,H58,$C$47,$C$46) -> 0 | O58: 1.873098086 | P58: 0 | Q58: =P58/(P58+O58) -> 0 | R58: 0 | S58: =dpdx_mpf($C$44,L58,J58,K58,I58,O58,P58,$C$42,$C$45,R58) -> -0.09724776866

Sheet PVT
A1: T | B1: [C] | C1: 80
A2: COLUMN: | B2: 2 | C2: 3 | D2: 4 | E2: 5 | F2: 6 | G2: 7 | H2: 8 | I2: 9
A3: p | B3: Rs | C3: rs | D3: Bo | E3: Bg | F3: deng | G3: viscg | H3: deno | I3: visco
A4: [bara] | B4: [Sm3/Sm3] | C4: [Sm3/Sm3] | D4: [m3/Sm3] | E4: [m3/Sm3] | F4: [kg/m3] | G4: [cP] | H4: [kg/m3] | I4: [cP]
A5: 1 | B5: 0.59556 | C5: 0 | D5: 1.03553 | E5: 1.22769 | F5: 0.75144 | G5: 0.012539 | H5: 811.737 | I5: 1.41903
A6: 14.7586 | B6: 5.67261 | C6: 0 | D6: 1.04514 | E6: 0.08216 | F6: 11.2286 | G6: 0.012692 | H6: 808.754 | I6: 1.33548
A7: 28.5172 | B7: 10.0177 | C7: 0 | D7: 1.0539 | E7: 0.041433 | F7: 22.2658 | G7: 0.012935 | H7: 805.839 | I7: 1.27023
A8: 42.2759 | B8: 14.3302 | C8: 0 | D8: 1.06301 | E8: 0.027241 | F8: 33.8653 | G8: 0.013247 | H8: 802.673 | I8: 1.21046
A9: 56.0345 | B9: 18.7175 | C9: 0 | D9: 1.07267 | E9: 0.020046 | F9: 46.0204 | G9: 0.013626 | H9: 799.217 | I9: 1.15416
A10: 69.7931 | B10: 23.2216 | C10: 0 | D10: 1.08296 | E10: 0.015717 | F10: 58.6961 | G10: 0.014074 | H10: 795.464 | I10: 1.10059
A11: 83.5517 | B11: 27.8647 | C11: 0 | D11: 1.09391 | E11: 0.012845 | F11: 71.8213 | G11: 0.014592 | H11: 791.416 | I11: 1.04936
A12: 97.3103 | B12: 32.6609 | C12: 0 | D12: 1.10556 | E12: 0.010817 | F12: 85.2833 | G12: 0.015181 | H12: 787.081 | I12: 1.00027
A13: 111.069 | B13: 37.6205 | C13: 0 | D13: 1.11793 | E13: 0.0093251 | F13: 98.9304 | G13: 0.015838 | H13: 782.468 | I13: 0.95318
A14: 124.828 | B14: 42.7518 | C14: 0 | D14: 1.13103 | E14: 0.0081942 | F14: 112.584 | G14: 0.016559 | H14: 777.588 | I14: 0.90801
A15: 138.586 | B15: 48.062 | C15: 0 | D15: 1.14489 | E15: 0.0073182 | F15: 126.061 | G15: 0.017334 | H15: 772.455 | I15: 0.8647
A16: 152.345 | B16: 53.5577 | C16: 0 | D16: 1.15952 | E16: 0.0066278 | F16: 139.193 | G16: 0.018155 | H16: 767.083 | I16: 0.8232
A17: 166.103 | B17: 59.2453 | C17: 0 | D17: 1.17493 | E17: 0.0060755 | F17: 151.846 | G17: 0.01901 | H17: 761.486 | I17: 0.78346
A18: 179.862 | B18: 65.1308 | C18: 0 | D18: 1.19114 | E18: 0.0056277 | F18: 163.927 | G18: 0.01989 | H18: 755.681 | I18: 0.74546
A19: 193.621 | B19: 71.2205 | C19: 0 | D19: 1.20817 | E19: 0.0052602 | F19: 175.381 | G19: 0.020783 | H19: 749.682 | I19: 0.70917
A20: 207.379 | B20: 77.5206 | C20: 0 | D20: 1.22602 | E20: 0.0049549 | F20: 186.187 | G20: 0.021683 | H20: 743.507 | I20: 0.67456
A21: 221.138 | B21: 84.0375 | C21: 0 | D21: 1.24471 | E21: 0.0046985 | F21: 196.348 | G21: 0.022583 | H21: 737.172 | I21: 0.6416
A22: 234.897 | B22: 90.7778 | C22: 0 | D22: 1.26426 | E22: 0.0044809 | F22: 205.882 | G22: 0.023476 | H22: 730.693 | I22: 0.61026
A23: 248.655 | B23: 97.7481 | C23: 0 | D23: 1.28468 | E23: 0.0042945 | F23: 214.818 | G23: 0.02436 | H23: 724.087 | I23: 0.58053
A24: 253 | B24: 100 | C24: 0 | D24: 1.29131 | E24: 0 | F24: 0 | G24: 0 | H24: 721.977 | I24: 0.57146
A25: 262.414 | B25: 100 | C25: 0 | D25: 1.28946 | E25: 0 | F25: 0 | G25: 0 | H25: 723.012 | I25: 0.57659
A26: 276.172 | B26: 100 | C26: 0 | D26: 1.28699 | E26: 0 | F26: 0 | G26: 0 | H26: 724.401 | I26: 0.58409
A27: 289.931 | B27: 100 | C27: 0 | D27: 1.28475 | E27: 0 | F27: 0 | G27: 0 | H27: 725.661 | I27: 0.59158
A28: 303.69 | B28: 100 | C28: 0 | D28: 1.28272 | E28: 0 | F28: 0 | G28: 0 | H28: 726.808 | I28: 0.59908
A29: 317.448 | B29: 100 | C29: 0 | D29: 1.28088 | E29: 0 | F29: 0 | G29: 0 | H29: 727.858 | I29: 0.60658
A30: 331.207 | B30: 100 | C30: 0 | D30: 1.27918 | E30: 0 | F30: 0 | G30: 0 | H30: 728.822 | I30: 0.61408
A31: 344.966 | B31: 100 | C31: 0 | D31: 1.27762 | E31: 0 | F31: 0 | G31: 0 | H31: 729.71 | I31: 0.62158
A32: 358.724 | B32: 100 | C32: 0 | D32: 1.27619 | E32: 0 | F32: 0 | G32: 0 | H32: 730.531 | I32: 0.62908
A33: 372.483 | B33: 100 | C33: 0 | D33: 1.27486 | E33: 0 | F33: 0 | G33: 0 | H33: 731.292 | I33: 0.63658
A34: 386.241 | B34: 100 | C34: 0 | D34: 1.27363 | E34: 0 | F34: 0 | G34: 0 | H34: 731.999 | I34: 0.64408
A35: 400 | B35: 100 | C35: 0 | D35: 1.27248 | E35: 0 | F35: 0 | G35: 0 | H35: 732.659 | I35: 0.65158

Sheet TPR
A1: Tubing performance relationship (TPR)
A2: pwh | B2: [bara] | C2: 100
A4: COLUMN | B4: 2 | C4: 3 | D4: 4 | E4: 5 | F4: 6
A5: Rp (GOR) | B5: 100 | C5: 200 | D5: 400 | E5: 600 | F5: 800 | H5: 2 | I5: 100
A6: qo | B6: pwf | C6: pwf | D6: pwf | E6: pwf | F6: pwf | H6: 3 | I6: 200
A7: [Sm3/d] | B7: [bara] | C7: [bara] | D7: [bara] | E7: [bara] | F7: [bara] | H7: 4 | I7: 400
A8: 0 | B8: 286.378 | C8: 285.067 | D8: 283.471 | E8: 281.857 | F8: 280.225 | H8: 5 | I8: 600
A9: 153.642 | B9: 278.452 | C9: 243.506 | D9: 194.952 | E9: 174.268 | F9: 167.04 | H9: 6 | I9: 800
A10: 304.414 | B10: 272.164 | C10: 233.206 | D10: 191.11 | E10: 175.511 | F10: 170.994
A11: 455.185 | B11: 270.757 | C11: 231.274 | D11: 190.658 | E11: 178.146 | F11: 175.245
A12: 605.957 | B12: 270.013 | C12: 230.518 | D12: 191.776 | E12: 181.55 | F12: 179.904
A13: 756.729 | B13: 269.743 | C13: 230.565 | D13: 193.845 | E13: 185.526 | F13: 185.084
A14: 907.501 | B14: 269.832 | C14: 231.214 | D14: 196.577 | E14: 189.99 | F14: 190.8
A15: 1058.27 | B15: 270.215 | C15: 232.347 | D15: 199.835 | E15: 194.903 | F15: 197.041
A16: 1209.04 | B16: 270.85 | C16: 233.887 | D16: 203.58 | E16: 200.236 | F16: 203.791
A17: 1359.82 | B17: 271.706 | C17: 235.781 | D17: 207.728 | E17: 205.969 | F17: 211.032
A18: 1510.59 | B18: 272.759 | C18: 237.989 | D18: 212.247 | E18: 212.089 | F18: 218.745
A19: 1661.36 | B19: 273.992 | C19: 240.481 | D19: 217.107 | E19: 218.578 | F19: 226.914
A20: 1812.13 | B20: 275.392 | C20: 243.234 | D20: 222.288 | E20: 225.425 | F20: 235.523
A21: 1962.9 | B21: 276.949 | C21: 246.228 | D21: 227.772 | E21: 232.614 | F21: 244.559
A22: 2113.68 | B22: 278.654 | C22: 249.446 | D22: 233.544 | E22: 240.131 | F22: 254.01
A23: 2264.45 | B23: 280.499 | C23: 252.874 | D23: 239.589 | E23: 247.965 | F23: 263.871
A24: 2415.22 | B24: 282.479 | C24: 256.499 | D24: 245.897 | E24: 256.101 | F24: 274.129
A25: 2565.99 | B25: 284.529 | C25: 260.311 | D25: 252.257 | E25: 264.528 | F25: 284.768
A26: 2716.76 | B26: 286.761 | C26: 264.298 | D26: 259.033 | E26: 273.235 | F26: 295.777
A27: 2867.54 | B27: 289.116 | C27: 268.452 | D27: 266.043 | E27: 282.432 | F27: 307.142
